fUST/lending_fUST_20250912
["ID","MTS","AMOUNT","RATE_DAILY","PERIOD"]
[385208101,1757685060945,-480.0,0.00016986,2]
[385208103,1757685060955,-4526.32,0.00016986,2]
[385208105,1757685060964,-783.84,0.00016986,2]
[385208107,1757685060974,-429.59979318,0.00016986,2]
[385208109,1757685060984,-197.45141684,0.00016986,2]
[385208111,1757685060993,-521.83,0.00016986,2]
[385208113,1757685061003,-480.0,0.00016986,2]
[385208115,1757685061012,-480.0,0.00016986,2]
[385208117,1757685061022,-1998.84,0.00016986,2]
[385208119,1757685061031,-480.0,0.00016986,2]
[385208121,1757685061041,-480.0,0.00016986,2]
[385208122,1757685061050,-480.0,0.00016986,2]
[385208124,1757685061059,-480.0,0.00016986,2]
[385208126,1757685061069,-480.0,0.00016986,2]
[385208128,1757685061078,-480.0,0.00016986,2]
[385208130,1757685061088,-480.0,0.00016986,2]
[385208132,1757685061098,-74301.59295154,0.00017,2]
[385208134,1757685061107,-151.0,0.00017,2]
[385208136,1757685061117,-151.0,0.00017,2]
[385208138,1757685061126,-1147.42701485,0.00017033,2]
[385208140,1757685061136,-480.0,0.0001726,2]
[385208142,1757685061146,-480.0,0.0001726,2]
[385208144,1757685061155,-480.0,0.0001726,2]
[385208146,1757685061165,-480.0,0.0001726,2]
[385208148,1757685061173,-480.0,0.0001726,2]
[385208150,1757685061183,-2116.72,0.0001726,2]
[385208152,1757685061195,-686.19,0.0001726,2]
[385208154,1757685061204,-480.0,0.0001726,2]
[385208156,1757685061214,-2417.02,0.0001726,2]
[385208158,1757685061224,-480.0,0.0001726,2]
[385208160,1757685061234,-643.43,0.0001726,2]
[385208162,1757685061245,-1203.48,0.0001726,2]
[385208164,1757685061255,-480.0,0.0001726,2]
[385208166,1757685061265,-600.0,0.0001726,2]
[385208168,1757685061275,-480.0,0.0001726,2]
[385208170,1757685061286,-480.0,0.0001726,2]
[385208173,1757685061296,-4526.32,0.0001726,2]
[385208175,1757685061305,-783.84,0.0001726,2]
[385208176,1757685061315,-521.83,0.0001726,2]
[385208177,1757685061324,-490.53054322,0.0001726,2]
[385208178,1757685061333,-480.0,0.0001726,2]
[385208179,1757685061343,-1998.84,0.0001726,2]
[385208180,1757685061352,-480.0,0.0001726,2]
[385208181,1757685061361,-480.0,0.0001726,2]
[385208183,1757685061370,-297.77,0.0001726,2]
[385208185,1757685061379,-273.67,0.0001726,2]
[385208187,1757685061389,-480.0,0.0001726,2]
[385208189,1757685061399,-308.62682951,0.0001726,2]
[385208191,1757685061408,-480.0,0.0001726,2]
[385208193,1757685061418,-1297.92872535,0.0001726,2]
[385208195,1757685061427,-151.0,0.000174,2]
[385208197,1757685061436,-151.0,0.00017534,2]
[385208200,1757685061449,-151.0,0.00017534,2]
[385208202,1757685061458,-151.0,0.00017534,2]
[385208204,1757685061467,-151.588811,0.00017534,2]
[385208206,1757685061477,-178.646586,0.00017534,2]
[385208208,1757685061488,-480.0,0.00017534,2]
[385208210,1757685061498,-260.0,0.00017534,2]
[385208212,1757685061507,-480.0,0.00017534,2]
[385208214,1757685061516,-480.0,0.00017534,2]
[385208216,1757685061525,-480.0,0.00017534,2]
[385208218,1757685061535,-2116.72,0.00017534,2]
[385208220,1757685061544,-686.19,0.00017534,2]
[385208222,1757685061557,-480.0,0.00017534,2]
[385208224,1757685061568,-2417.02,0.00017534,2]
[385208226,1757685061577,-480.0,0.00017534,2]
[385208228,1757685061586,-643.43,0.00017534,2]
[385208230,1757685061598,-1203.48,0.00017534,2]
[385208232,1757685061607,-480.0,0.00017534,2]
[385208234,1757685061616,-480.0,0.00017534,2]
[385208236,1757685061626,-480.0,0.00017534,2]
[385208238,1757685061634,-4526.32,0.00017534,2]
[385208240,1757685061645,-783.84,0.00017534,2]
[385208242,1757685061655,-521.83,0.00017534,2]
[385208244,1757685061665,-480.0,0.00017534,2]
[385208246,1757685061674,-1998.84,0.00017534,2]
[385208248,1757685061683,-480.0,0.00017534,2]
[385208250,1757685061694,-480.0,0.00017534,2]
[385208260,1757685061776,-480.0,0.00017534,2]
[385208262,1757685061786,-480.0,0.00017534,2]
[385208264,1757685061795,-500.0,0.000176,2]
[385208266,1757685061805,-501.08556661,0.000176,2]
[385208268,1757685061814,-502.92865718,0.000176,2]
[385208270,1757685061824,-501.1659984,0.000176,2]
[385208272,1757685061834,-2101.26831067,0.000176,2]
[385208274,1757685061844,-767.97215795,0.00017692,2]
[385208276,1757685061853,-1361.73318116,0.00017773,2]
[385208278,1757685061863,-480.0,0.00017808,2]
[385208280,1757685061872,-260.0,0.00017808,2]
[385208282,1757685061882,-480.0,0.00017808,2]
[385208284,1757685061891,-480.0,0.00017808,2]
[385208286,1757685061901,-2116.72,0.00017808,2]
[385208288,1757685061910,-686.19,0.00017808,2]
[385208290,1757685061919,-480.0,0.00017808,2]
[385208292,1757685061929,-2417.02,0.00017808,2]
[385208294,1757685061939,-480.0,0.00017808,2]
[385208296,1757685061948,-643.43,0.00017808,2]
[385208298,1757685061958,-1203.48,0.00017808,2]
[385208300,1757685061967,-480.0,0.00017808,2]
[385208302,1757685061977,-480.0,0.00017808,2]
[385208304,1757685061986,-480.0,0.00017808,2]
[385208307,1757685061997,-4526.32,0.00017808,2]
[385208309,1757685062007,-783.84,0.00017808,2]
[385208311,1757685062016,-521.83,0.00017808,2]
[385208312,1757685062025,-480.0,0.00017808,2]
[385208314,1757685062034,-1998.84,0.00017808,2]
[385208317,1757685062044,-480.0,0.00017808,2]
[385208319,1757685062054,-480.0,0.00017808,2]
[385208321,1757685062063,-480.0,0.00017808,2]
[385208323,1757685062072,-480.0,0.00017808,2]
[385208325,1757685062081,-151.0,0.000179,2]
[385208326,1757685062090,-823.0,0.000179,2]
[385208329,1757685062100,-69306.4107877,0.00018,2]
[385208331,1757685062110,-25694.16957968,0.00018,5]
[385208333,1757685062120,-151.0,0.00018,2]
[385208335,1757685062129,-151.0,0.00018,2]
[385208337,1757685062138,-151.0,0.00018,2]
[385208339,1757685062148,-152.198541,0.00018,2]
[385208341,1757685062157,-151.0,0.00018,2]
[385208343,1757685062167,-151.0,0.00018,2]
[385208345,1757685062175,-151.0,0.00018,2]
[385208347,1757685062185,-151.0,0.00018,2]
[385208349,1757685062195,-151.0,0.00018,2]
[385208350,1757685062205,-151.0,0.00018,2]
[385208353,1757685062214,-151.0,0.00018,2]
[385208355,1757685062223,-151.0,0.00018,2]
[385208356,1757685062234,-151.0,0.00018,2]
[385208358,1757685062244,-225.104764,0.00018,2]
[385208360,1757685062257,-151.0,0.00018,2]
[385208362,1757685062267,-151.0,0.00018,2]
[385208365,1757685062276,-480.0,0.00018082,2]
[385208367,1757685062287,-480.0,0.00018082,2]
[385208369,1757685062296,-480.0,0.00018082,2]
[385208371,1757685062306,-2116.72,0.00018082,2]
[385208373,1757685062315,-686.19,0.00018082,2]
[385208375,1757685062324,-2417.02,0.00018082,2]
[385208377,1757685062333,-480.0,0.00018082,2]
[385208379,1757685062343,-480.0,0.00018082,2]
[385208381,1757685062352,-643.43,0.00018082,2]
[385208383,1757685062362,-1203.48,0.00018082,2]
[385208385,1757685062371,-480.0,0.00018082,2]
[385208387,1757685062381,-480.0,0.00018082,2]
[385208389,1757685062390,-480.0,0.00018082,2]
[385208391,1757685062401,-4526.32,0.00018082,2]
[385208393,1757685062410,-783.84,0.00018082,2]
[385208395,1757685062419,-521.83,0.00018082,2]
[385208397,1757685062428,-312.36073457,0.00018082,2]
[385208399,1757685062438,-1998.84,0.00018082,2]
[385208401,1757685062447,-480.0,0.00018082,2]
[385208403,1757685062457,-480.0,0.00018082,2]
[385208405,1757685062466,-480.0,0.00018082,2]
[385208407,1757685062476,-480.0,0.00018082,2]
[385208409,1757685062486,-500.67034155,0.000181,2]
[385208411,1757685062495,-151.0,0.000181,2]
[385208414,1757685062506,-151.0,0.000181,2]
[385208415,1757685062515,-151.0,0.000181,2]
[385208417,1757685062524,-151.933697,0.000181,2]
[385208419,1757685062534,-151.0,0.000181,2]
[385208422,1757685062544,-151.0,0.000181,2]
[385208424,1757685062555,-151.0,0.000181,2]
[385208426,1757685062566,-151.0,0.000181,2]
[385208427,1757685062576,-151.789915,0.000181,2]
[385208430,1757685062586,-151.0,0.000181,2]
[385208432,1757685062595,-151.0,0.000181,2]
[385208434,1757685062605,-151.0,0.000181,2]
[385208436,1757685062616,-500.0,0.00018141,2]
[385208438,1757685062626,-380.33153973,0.00018148,2]
[385208440,1757685062636,-588.57685559,0.0001824,2]
[385208442,1757685062646,-225.04,0.00018356,2]
[385208444,1757685062655,-237.03,0.00018356,2]
[385208446,1757685062665,-480.0,0.00018356,2]
[385208448,1757685062675,-2116.72,0.00018356,2]
[385208450,1757685062684,-686.19,0.00018356,2]
[385208452,1757685062694,-2417.02,0.00018356,2]
[385208454,1757685062704,-480.0,0.00018356,2]
[385208456,1757685062714,-480.0,0.00018356,2]
[385208458,1757685062723,-643.43,0.00018356,2]
[385208460,1757685062733,-1203.48,0.00018356,2]
[385208462,1757685062742,-540.0,0.00018356,2]
[385208464,1757685062751,-250.98,0.00018356,2]
[385208466,1757685062760,-593.27307317,0.00018356,2]
[385208468,1757685062770,-4526.32,0.00018356,2]
[385208470,1757685062779,-783.84,0.00018356,2]
[385208472,1757685062789,-521.83,0.00018356,2]
[385208474,1757685062798,-1998.84,0.00018356,2]
[385208476,1757685062807,-458.78,0.00018356,2]
[385208478,1757685062817,-480.0,0.00018356,2]
[385208480,1757685062826,-480.0,0.00018356,2]
[385208482,1757685062835,-480.0,0.00018356,2]
[385208484,1757685062844,-263.323274,0.00018493,2]
[385208486,1757685062853,-480.0,0.0001863,2]
[385208487,1757685062862,-2116.72,0.0001863,2]
[385208488,1757685062871,-686.19,0.0001863,2]
[385208490,1757685062880,-2417.02,0.0001863,2]
[385208492,1757685062890,-222.03086615,0.0001863,2]
[385208494,1757685062900,-345.88,0.0001863,2]
[385208496,1757685062910,-643.43,0.0001863,2]
[385208498,1757685062920,-1203.48,0.0001863,2]
[385208501,1757685062930,-4526.32,0.0001863,2]
[385208503,1757685062940,-783.84,0.0001863,2]
[385208505,1757685062950,-521.83,0.0001863,2]
[385208507,1757685062959,-1998.84,0.0001863,2]
[385208509,1757685062968,-225.280553,0.0001863,2]
[385208511,1757685062977,-480.0,0.0001863,2]
[385208513,1757685062986,-321.01,0.0001863,2]
[385208514,1757685062995,-480.0,0.00018904,2]
[385208517,1757685063005,-2116.72,0.00018904,2]
[385208519,1757685063014,-686.19,0.00018904,2]
[385208521,1757685063024,-2417.02,0.00018904,2]
[385208523,1757685063033,-643.43,0.00018904,2]
[385208525,1757685063042,-1203.48,0.00018904,2]
[385208534,1757685063124,-4526.32,0.00018904,2]
[385208536,1757685063133,-783.84,0.00018904,2]
[385208539,1757685063144,-521.83,0.00018904,2]
[385208541,1757685063153,-1998.84,0.00018904,2]
[385208543,1757685063163,-480.0,0.00018904,2]
[385208545,1757685063172,-150.52137978,0.00019178,2]
[385208547,1757685063182,-480.0,0.00019178,2]
[385208548,1757685063191,-480.0,0.00019178,2]
[385208551,1757685063202,-480.0,0.00019178,2]
[385208552,1757685063212,-480.0,0.00019178,2]
[385208554,1757685063222,-480.0,0.00019178,2]
[385208556,1757685063231,-480.0,0.00019178,2]
[385208558,1757685063241,-484.53319869,0.00019178,2]
[385208560,1757685063251,-224.62284124,0.00019178,2]
[385208563,1757685063262,-2116.72,0.00019178,2]
[385208565,1757685063272,-686.19,0.00019178,2]
[385208567,1757685063282,-2417.02,0.00019178,2]
[385208569,1757685063291,-643.43,0.00019178,2]
[385208571,1757685063300,-1203.48,0.00019178,2]
[385208573,1757685063310,-4526.32,0.00019178,2]
[385208575,1757685063319,-783.84,0.00019178,2]
[385208577,1757685063328,-521.83,0.00019178,2]
[385208579,1757685063338,-1998.84,0.00019178,2]
[385208581,1757685063347,-480.0,0.00019178,2]
[385208583,1757685063356,-150.09053132,0.00019178,2]
[385208585,1757685063365,-2116.72,0.00019452,2]
[385208587,1757685063375,-686.19,0.00019452,2]
[385208589,1757685063385,-2417.02,0.00019452,2]
[385208591,1757685063394,-643.43,0.00019452,2]
[385208592,1757685063404,-1203.48,0.00019452,2]
[385208595,1757685063413,-4526.32,0.00019452,2]
[385208597,1757685063426,-783.84,0.00019452,2]
[385208599,1757685063436,-521.83,0.00019452,2]
[385208600,1757685063447,-1998.84,0.00019452,2]
[385208602,1757685063456,-212.43193698,0.00019452,2]
[385208604,1757685063465,-1152.0,0.00019618,2]
[385208606,1757685063475,-6905.56779699,0.00019626,2]
[385208609,1757685063484,-151.0,0.00019726,2]
[385208611,1757685063494,-151.0,0.00019726,2]
[385208612,1757685063503,-151.0,0.00019726,2]
[385208614,1757685063513,-151.0,0.00019726,2]
[385208617,1757685063522,-151.0,0.00019726,2]
[385208618,1757685063531,-151.0,0.00019726,2]
[385208620,1757685063541,-151.0,0.00019726,2]
[385208623,1757685063552,-151.0,0.00019726,2]
[385208625,1757685063565,-2116.72,0.00019726,2]
[385208626,1757685063575,-686.19,0.00019726,2]
[385208629,1757685063584,-2417.02,0.00019726,2]
[385208631,1757685063595,-643.43,0.00019726,2]
[385208633,1757685063604,-1203.48,0.00019726,2]
[385208635,1757685063613,-4526.32,0.00019726,2]
[385208636,1757685063623,-783.84,0.00019726,2]
[385208639,1757685063633,-521.83,0.00019726,2]
[385208641,1757685063642,-1998.84,0.00019726,2]
[385208643,1757685063655,-1361.73318116,0.00019909,2]
[385208645,1757685063664,-1024.55115294,0.0002,2]
[385208647,1757685063674,-2036.50406089,0.0002,2]
[385208649,1757685063683,-457.63,0.0002,4]
[385208651,1757685063693,-2116.8201587,0.0002,2]
[385208653,1757685063703,-686.37,0.0002,2]
[385208655,1757685063713,-2417.21400512,0.0002,2]
[385208657,1757685063723,-643.51098977,0.0002,2]
[385208659,1757685063733,-1203.68833699,0.0002,2]
[385208661,1757685063742,-4526.34841304,0.0002,2]
[385208663,1757685063752,-783.94221741,0.0002,2]
[385208665,1757685063761,-521.8862264,0.0002,2]
[385208667,1757685063771,-1999.07128124,0.0002,2]
[385208669,1757685063782,-4000.0,0.0002,4]
[385208671,1757685063791,-957.111867,0.00020187,2]
[385208673,1757685063801,-1000.0,0.00020455,20]
[385208675,1757685063811,-244.0,0.00020455,20]
[385208677,1757685063821,-9702.3185589,0.00020516,2]
[385208679,1757685063831,-7969.9370181,0.00020516,2]
[385208681,1757685063840,-1825.11086,0.00020548,2]
[385208683,1757685063850,-151.0,0.00021098,2]
[385208685,1757685063859,-151.0,0.00021098,2]
[385208687,1757685063869,-156.53,0.0002118,2]
[385208689,1757685063880,-186.92216063,0.00021256,2]
[385208691,1757685063889,-2164.8798938,0.00021321,2]
[385208693,1757685063898,-1778.3333232,0.00021321,2]
[385208696,1757685063909,-3071.88863182,0.0002137,2]
[385208698,1757685063921,-1613.0,0.00021502,2]
[385208700,1757685063931,-976.0,0.00021839,2]
[385208702,1757685063941,-653.379,0.00021839,2]
[385208704,1757685063950,-2157.799,0.00021839,2]
[385208706,1757685063960,-409.0,0.00021839,2]
[385208708,1757685063969,-153.0,0.00021918,2]
[385208710,1757685063979,-153.0,0.00021918,2]
[385208712,1757685063988,-263.323274,0.00021918,2]
[385208714,1757685063997,-200.0,0.00021918,2]
[385208716,1757685064007,-258.51054795,0.00021918,2]
[385208718,1757685064017,-151.0,0.00021918,7]
[385208720,1757685064026,-151.0,0.00021918,7]
[385208722,1757685064036,-158.973971,0.00021918,7]
[385208724,1757685064045,-10585.41552735,0.00022,7]
[385208726,1757685064054,-151.0,0.00022,7]
[385208728,1757685064064,-151.0,0.00022,7]
[385208729,1757685064074,-151.0,0.00022,7]
[385208732,1757685064083,-151.0,0.00022,7]
[385208734,1757685064093,-178497.79,0.00022,7]
[385208736,1757685064102,-151.0,0.00022,7]
[385208737,1757685064112,-156.148136,0.00022,7]
[385208739,1757685064121,-16616.56,0.00022,7]
[385208741,1757685064130,-5507.85,0.00022,7]
[385208744,1757685064139,-151.0,0.00022,7]
[385208746,1757685064149,-151.0,0.00022,7]
[385208747,1757685064158,-2006.88,0.00022,2]
[385208749,1757685064168,-152.332847,0.00022,7]
[385208751,1757685064177,-170.107706,0.00022,7]
[385208753,1757685064190,-151.0,0.00022,7]
[385208756,1757685064201,-151.0,0.00022,7]
[385208758,1757685064215,-151.0,0.00022,7]
[385208760,1757685064225,-151.0,0.00022,7]
[385208762,1757685064234,-206.434057,0.00022,7]
[385208764,1757685064244,-151.0,0.00022,7]
[385208766,1757685064253,-151.0,0.00022,7]
[385208767,1757685064263,-151.0,0.00022,7]
[385208770,1757685064272,-252.085046,0.00022,7]
[385208772,1757685064282,-151.0,0.00022,7]
[385208774,1757685064291,-151.0,0.00022,7]
[385208776,1757685064300,-151.0,0.00022,7]
[385208778,1757685064310,-151.0,0.00022,7]
[385208787,1757685064385,-151.0,0.00022,7]
[385208789,1757685064395,-151.0,0.00022,2]
[385208791,1757685064404,-151.0,0.00022,7]
[385208793,1757685064413,-531.04384426,0.00022,7]
[385208795,1757685064422,-2138.76,0.00022,7]
[385208797,1757685064431,-417.15472785,0.00022,7]
[385208799,1757685064441,-201.0,0.00022,2]
[385208801,1757685064450,-373.28,0.00022,2]
[385208803,1757685064459,-160.0,0.00022,7]
[385208805,1757685064469,-1361.73318116,0.00022046,2]
[385208807,1757685064478,-2351.95311495,0.00022046,2]
[385208809,1757685064487,-300.0,0.00022466,2]
[385208811,1757685064497,-1000.0,0.000225,20]
[385208813,1757685064506,-492.0,0.000225,20]
[385208815,1757685064515,-27509.20118396,0.000228,2]
[385208817,1757685064524,-373.28,0.00022829,2]
[385208819,1757685064534,-450.0,0.00023014,2]
[385208821,1757685064544,-1112.61,0.00023287,2]
[385208823,1757685064557,-200.01945567,0.00023288,2]
[385208825,1757685064567,-176.327,0.00023391,3]
[385208827,1757685064577,-5507.85,0.000234,7]
[385208829,1757685064587,-151.0,0.000235,7]
[385208831,1757685064597,-151.0,0.000235,7]
[385208833,1757685064606,-151.0,0.000235,7]
[385208835,1757685064615,-151.0,0.000235,7]
[385208837,1757685064624,-151.0,0.000235,7]
[385208839,1757685064634,-151.0,0.000235,7]
[385208841,1757685064643,-151.0,0.000235,7]
[385208843,1757685064652,-151.0,0.000235,7]
[385208845,1757685064662,-16616.56,0.000235,7]
[385208847,1757685064671,-208.07191453,0.00023562,2]
[385208849,1757685064681,-815.0,0.00023566,2]
[385208851,1757685064691,-178497.79,0.000236,7]
[385208853,1757685064700,-151.0,0.000236,7]
[385208855,1757685064709,-151.0,0.000236,7]
[385208857,1757685064719,-151.0,0.000236,7]
[385208859,1757685064728,-245.0,0.00023602,2]
[385208861,1757685064738,-373.28,0.00023657,2]
[385208863,1757685064747,-245.0,0.00023659,2]
[385208865,1757685064756,-245.0,0.0002373,2]
[385208866,1757685064765,-2138.76,0.000238,7]
[385208868,1757685064774,-245.0,0.00023843,2]
[385208870,1757685064783,-245.0,0.00023851,2]
[385208872,1757685064793,-2060.35663519,0.0002399,2]
[385208874,1757685064802,-233.13074058,0.00024,7]
[385208876,1757685064813,-847.0429734,0.00024,7]
[385208878,1757685064822,-417.15472785,0.00024,3]
[385208880,1757685064832,-160.0,0.00024,7]
[385208882,1757685064841,-160.0,0.00024,7]
[385208884,1757685064850,-160.0,0.00024,7]
[385208886,1757685064859,-217.7145751,0.00024,7]
[385208888,1757685064869,-1361.73318116,0.00024182,2]
[385208890,1757685064878,-245.0,0.00024329,2]
[385208892,1757685064888,-245.0,0.00024345,2]
[385208894,1757685064897,-245.0,0.00024433,2]
[385208896,1757685064906,-245.0,0.00024434,2]
[385208898,1757685064916,-245.0,0.00024435,2]
[385208900,1757685064925,-245.0,0.00024445,2]
[385208902,1757685064934,-373.28,0.00024486,2]
[385208904,1757685064945,-245.0,0.00024521,2]
[385208906,1757685064954,-245.0,0.00024588,2]
[385208908,1757685064964,-5507.85,0.000246,7]
[385208910,1757685064973,-245.0,0.00024612,2]
[385208912,1757685064982,-245.0,0.00024627,2]
[385208914,1757685064992,-500.0,0.00024657,2]
[385208916,1757685065001,-398.9,0.00024657,2]
[385208918,1757685065010,-600.0,0.00024657,2]
[385208920,1757685065019,-600.0,0.00024657,2]
[385208922,1757685065028,-600.0,0.00024657,2]
[385208924,1757685065038,-600.0,0.00024657,2]
[385208926,1757685065047,-364.69343652,0.00024657,2]
[385208928,1757685065056,-151.0,0.00024657,7]
[385208930,1757685065065,-151.0,0.00024657,7]
[385208932,1757685065075,-173.727909,0.00024657,7]
[385208934,1757685065085,-241.0,0.00024657,7]
[385208936,1757685065094,-200.0,0.00024658,15]
[385208938,1757685065103,-200.0,0.00024658,2]
[385208940,1757685065112,-380.0,0.00024658,2]
[385208942,1757685065122,-245.0,0.00024662,2]
[385208944,1757685065131,-245.0,0.00024682,2]
[385208946,1757685065141,-151.0,0.00024693,7]
[385208948,1757685065150,-151.0,0.00024693,7]
[385208950,1757685065159,-151.0,0.00024693,7]
[385208952,1757685065168,-151.0,0.00024693,7]
[385208954,1757685065178,-151.0,0.00024693,7]
[385208956,1757685065187,-157.87158,0.00024693,7]
[385208958,1757685065198,-151.0,0.00024693,7]
[385208960,1757685065207,-151.0,0.00024693,7]
[385208962,1757685065216,-151.0,0.00024693,7]
[385208964,1757685065226,-151.0,0.000247,7]
[385208966,1757685065235,-151.0,0.000247,7]
[385208968,1757685065246,-151.0,0.000247,7]
[385208970,1757685065255,-154.47527,0.000247,7]
[385208972,1757685065265,-16616.56,0.000247,7]
[385208973,1757685065274,-151.0,0.000247,7]
[385208975,1757685065283,-1000.0,0.0002475,20]
[385208977,1757685065292,-791.0,0.0002475,20]
[385208979,1757685065303,-151.0,0.000248,7]
[385208981,1757685065312,-151.0,0.000248,7]
[385208983,1757685065321,-151.0,0.000248,7]
[385208985,1757685065331,-178497.79,0.000248,7]
[385208987,1757685065340,-151.0,0.000248,7]
[385208989,1757685065348,-151.0,0.000248,7]
[385208991,1757685065357,-151.0,0.000248,7]
[385208993,1757685065366,-151.0,0.000248,7]
[385208995,1757685065376,-298.5346,0.000248,7]
[385208997,1757685065385,-151.0,0.000248,7]
[385208999,1757685065394,-151.0,0.000248,7]
[385209001,1757685065402,-151.0,0.000248,7]
[385209003,1757685065412,-151.0,0.000248,7]
[385209005,1757685065421,-151.0,0.000248,7]
[385209006,1757685065431,-103287.225594,0.000248,2]
[385209008,1757685065443,-960.528,0.00024839,2]
[385209017,1757685065522,-634.0,0.00024839,2]
[385209019,1757685065532,-2155.0,0.00024839,2]
[385209021,1757685065542,-409.0,0.00024839,2]
[385209023,1757685065556,-151.0,0.000249,7]
[385209025,1757685065566,-151.0,0.000249,7]
[385209027,1757685065575,-151.0,0.000249,7]
[385209029,1757685065584,-151.0,0.000249,7]
[385209031,1757685065594,-151.0,0.000249,7]
[385209033,1757685065604,-300.314648,0.000249,7]
[385209035,1757685065613,-151.0,0.000249,7]
[385209037,1757685065622,-151.0,0.000249,7]
[385209039,1757685065633,-151.0,0.000249,7]
[385209041,1757685065642,-151.0,0.000249,7]
[385209042,1757685065652,-250.0,0.000249,2]
[385209044,1757685065662,-250.0,0.000249,2]
[385209046,1757685065671,-250.0,0.000249,2]
[385209048,1757685065680,-250.0,0.000249,2]
[385209050,1757685065689,-250.0,0.000249,2]
[385209052,1757685065700,-256.3,0.000249,2]
[385209054,1757685065709,-151.0,0.000249,7]
[385209056,1757685065719,-151.0,0.000249,7]
[385209058,1757685065729,-151.0,0.000249,7]
[385209060,1757685065738,-290.527178,0.000249,7]
[385209062,1757685065747,-151.0,0.000249,7]
[385209064,1757685065757,-151.0,0.000249,7]
[385209066,1757685065766,-151.0,0.000249,7]
[385209068,1757685065776,-151.0,0.000249,7]
[385209070,1757685065786,-166.932687,0.000249,7]
[385209072,1757685065795,-735796.608073,0.000249,2]
[385209074,1757685065805,-245.0,0.00024934,2]
[385209076,1757685065814,-245.0,0.00024972,2]
[385209078,1757685065824,-156.59174,0.00025072,2]
[385209080,1757685065833,-245.0,0.00025184,2]
[385209082,1757685065843,-250.0,0.00025205,2]
[385209084,1757685065852,-373.28,0.00025315,7]
[385209086,1757685065862,-263.323274,0.00025342,2]
[385209088,1757685065871,-2138.76,0.000254,7]
[385209090,1757685065881,-245.0,0.00025513,2]
[385209092,1757685065890,-245.0,0.00025537,2]
[385209094,1757685065899,-600.0,0.00025569,18]
[385209096,1757685065908,-245.0,0.00025579,2]
[385209098,1757685065917,-167.02,0.00025704,7]
[385209100,1757685065927,-245.0,0.00025735,2]
[385209102,1757685065936,-350.0,0.00025753,2]
[385209104,1757685065947,-151.42,0.00025786,7]
[385209106,1757685065956,-1175.93,0.00025786,7]
[385209108,1757685065965,-5507.85,0.000258,7]
[385209110,1757685065974,-167.02,0.00025804,7]
[385209111,1757685065984,-151.42,0.00025886,7]
[385209113,1757685065993,-1175.93,0.00025886,7]
[385209115,1757685066002,-1311.26,0.0002589,7]
[385209117,1757685066011,-16616.56,0.000259,7]
[385209120,1757685066025,-260.5330253,0.000259,2]
[385209122,1757685066042,-167.02,0.00025904,7]